Workbook

Sheet 1
A1: с | B1: МОБУ Гимназия №3 | E1: Отд./корп | I1: День | J1: 2023-09-04
A3: Прием пищи | B3: Раздел | C3: № рец. | D3: Блюдо | E3: Выход, г | F3: Цена | G3: Калорийность | H3: Белки | I3: Жиры | J3: Углеводы
A4: Завтрак | B4: гор.блюдо | C4: 302 | D4: Каша овсяная "Геркулес" молочная вязкая | E4: 210.00 | G4: 264.00 | H4: 8.10 | I4: 9.80 | J4: 35.,60
B5: гор.напиток | C5: 3 | D5: бутерброд с сыром | E5: 40.00 | G5: 107.00 | H5: 5.00 | I5: 3.00 | J5: 14.50
B6: хлеб | C6: 3 | D6: хлеб пшеничный обогащенный (для детского питание | E6: 50.00 | G6: 118.00 | H6: 4.00 | I6: 1.00 | J6: 24.00
C7: 306 | D7: Яйцо вареное | E7: 63.00 | G7: 5.08 | H7: 4.60 | I7: 4.60 | J7: 0.28
C8: 685 | D8: чай с сахаром | E8: 200.00 | G8: 40.00 | H8: 0.00 | I8: 0.00 | J8: 9.98
A9: Завтрак 2 | B9: фрукты | E9: 540.00 | F9: 76.68 | G9: 592.00 | H9: 22.18 | I9: 18.40 | J9: 84.36
A12: Обед | B12: закуска
B13: 1 блюдо | C13: 140 | D13: суп картофельный с макаронными изделиями | E13: 200.00 | G13: 97.00 | H13: 2.00 | I13: 2.00 | J13: 17.00
B14: 2 блюдо | C14: 302 | D14: каша овсяная "Геркулес" молочная вязкая | E14: 210.00 | G14: 264.00 | H14: 8.10 | I14: 9.80 | J14: 35.60
B15: гарнир
B16: сладкое | C16: 685 | D16: чай с сахаром | E16: 200.00 | G16: 40.00 | H16: 0.00 | I16: 0.00 | J16: 9.90
B17: хлеб бел. | C17: 3 | D17: хлеб пшеничный обогащенный (для детского питани | E17: 60.00 | G17: 11.00 | H17: 4.00 | I17: 1.00 | J17: 24.00
B18: хлеб черн.
C19: 306 | D19: яйцо вареное | E19: 40.00 | G19: 63.00 | H19: 5.08 | I19: 4.80 | J19: 0.28
E20: 740.00 | F20: 84.78 | G20: 689.00 | H20: 24.18 | I20: 20.40 | J20: 101.36

Sheet Лист1
A1: с | B1: МОБУ Гимназия №3 | E1: Отд./корп | I1: День | J1: 2024-09-02
A3: Прием пищи | B3: Раздел | C3: № рец. | D3: Блюдо | E3: Выход, г | F3: Цена | G3: Калорийность | H3: Белки | I3: Жиры | J3: Углеводы
A4: Завтрак | C4: 302 | D4: каша рисовая молочная вязкая | E4: 210.00 | G4: 262.00 | H4: 5.90 | I4: 8.80 | J4: 4.10
C5: 3 | D5: бутерброд с сыром | E5: 40.00 | G5: 107.00 | H5: 5.00 | I5: 3.00 | J5: 14.50
B6: гор.напиток | C6: 685 | D6: чай с сахаром | E6: 200.00 | G6: 40.00 | H6: 0.2 | I6: 0.00 | J6: 10.00
B7: хлеб | C7: 3 | D7: хлеб пшеничный обогащенный ( для детского питания) | E7: 50.00 | G7: 122.00 | H7: 3.00 | I7: 0.50 | J7: 24.30
D8: сок фруктовый | E8: 200.00 | G8: 92.00 | H8: 1.00 | I8: 0.2 | J8: 20.00
E9: =SUM(E4:E8) -> 700.00 | G9: =SUM(G4:G8) -> 623.00 | H9: =SUM(H4:H8) -> 14.90 | I9: =SUM(I4:I8) -> 12.30 | J9: =SUM(J4:J8) -> 72.90
A11: Завтрак 2 | B11: фрукты
A15: Обед | B15: закуска | D15: салат из белокочанной капусты | E15: 60.00 | G15: 62.00 | H15: 1.40 | I15: 3.10 | J15: 7.00
B16: 1 блюдо | D16: суп картофельный | E16: 250.00 | G16: 97.00 | H16: 2.00 | I16: 2.00 | J16: 17.00
B17: 2 блюдо | D17: митбол с томатным соусом | E17: =E4 -> 210.00 | G17: 262.00 | H17: 5.90 | I17: 8.80 | J17: 4.10
B18: гарнир | D18: пюре гороховое | E18: 185.00 | G18: 292.00 | H18: 17.70 | I18: 5.80 | J18: 41.60
B19: сладкое | D19: чай с лимоном и сахаром | E19: =E6 -> 200.00 | G19: 37.00 | H19: 0.10 | I19: 0.00 | J19: 9.30
B20: хлеб бел. | D20: =D7 -> хлеб пшеничный обогащенный ( для детского питания) | E20: 50.00 | G20: 122.00 | H20: 3.00 | I20: 0.50 | J20: 24.30
B21: хлеб черн.
E23: =SUM(E16:E22) -> 895.00 | F23: 94.78 | G23: =SUM(G16:G22) -> 810.00 | H23: =SUM(H16:H22) -> 28.70 | I23: =SUM(I16:I22) -> 17.10 | J23: =SUM(J16:J22) -> 96.30
